fUST/lending_fUST_20250530
["ID","MTS","AMOUNT","RATE_DAILY","PERIOD"]
[363114663,1748586632250,-500.0,0.00015999,2]
[363114664,1748586632259,-500.0,0.00015999,2]
[363114665,1748586632269,-500.0,0.00015999,2]
[363114666,1748586632278,-500.0,0.00015999,2]
[363114667,1748586632287,-500.0,0.00015999,2]
[363114668,1748586632297,-500.0,0.00015999,2]
[363114669,1748586632306,-321.8351772,0.00015999,2]
[363114670,1748586632316,-500.0,0.00015999,2]
[363114671,1748586632327,-367.41184436,0.00015999,2]
[363114672,1748586632336,-257.98168635,0.00015999,2]
[363114673,1748586632345,-500.0,0.00015999,2]
[363114674,1748586632355,-19147.05959624,0.00016,2]
[363114675,1748586632366,-986.3209597,0.00016,2]
[363114676,1748586632481,-4825.01589593,0.00016,2]
[363114705,1748586638078,-3716.48985307,0.00016,2]
[363114707,1748586638088,-279.97,0.00016262,2]
[363114709,1748586638098,-24900.0,0.0001686,2]
[363114711,1748586638107,-335.97,0.00016912,2]
[363114713,1748586638116,-420.0,0.00017491,2]
[363114715,1748586638126,-420.0,0.00017492,2]
[363114717,1748586638135,-391.96,0.00017563,2]
[363114719,1748586638144,-1001.88517194,0.0001758,2]
[363114721,1748586638154,-1242.09902139,0.000177,2]
[363114723,1748586638163,-1242.09902138,0.000177,2]
[363114725,1748586638173,-1242.09902138,0.000177,2]
[363114728,1748586638191,-1242.09902138,0.00017728,2]
[363114730,1748586638209,-1242.09902138,0.00018003,2]
[363114734,1748586638228,-207.4,0.00018122,2]
[363114737,1748586638247,-300.0,0.00018122,2]
[363114740,1748586638268,-300.0,0.00018122,2]
[363114743,1748586638284,-300.0,0.00018122,2]
[363114746,1748586638303,-300.0,0.00018122,2]
[363114748,1748586638318,-300.0,0.00018122,2]
[363114751,1748586638334,-300.0,0.00018122,2]
[363114754,1748586638353,-300.0,0.00018122,2]
[363114757,1748586638373,-300.0,0.00018122,2]
[363114760,1748586638389,-300.0,0.00018122,2]
[363114763,1748586638404,-300.0,0.00018122,2]
[363114766,1748586638423,-300.0,0.00018122,2]
[363114768,1748586638438,-300.0,0.00018122,2]
[363114771,1748586638454,-300.0,0.00018122,2]
[363114773,1748586638469,-300.0,0.00018122,2]
[363114776,1748586638485,-300.0,0.00018122,2]
[363114778,1748586638499,-447.96,0.00018213,2]
[363114781,1748586638515,-1242.09902138,0.00018279,2]
[363114783,1748586638533,-363.7038849,0.00018541,2]
[363114788,1748586638568,-1242.09902138,0.00018555,2]
[363114792,1748586638596,-500.0,0.00018571,2]
[363114795,1748586638618,-268.105,0.00018739,2]
[363114799,1748586638639,-500.0,0.00018827,2]
[363114802,1748586638657,-974.48334217,0.00018827,2]
[363114804,1748586638674,-613.21041286,0.00018827,2]
[363114807,1748586638690,-974.48334217,0.00018827,2]
[363114810,1748586638707,-974.48334217,0.00018827,2]
[363114813,1748586638724,-974.48334217,0.00018827,2]
[363114815,1748586638741,-974.48334217,0.00018827,2]
[363114818,1748586638757,-974.48334217,0.00018827,2]
[363114821,1748586638774,-974.48334217,0.00018827,2]
[363114824,1748586638790,-974.48334217,0.00018827,2]
[363114826,1748586638806,-974.48334217,0.00018827,2]
[363114829,1748586638821,-974.48334217,0.00018827,2]
[363114832,1748586638836,-974.48334217,0.00018827,2]
[363114834,1748586638851,-974.48334217,0.00018827,2]
[363114837,1748586638866,-974.48334217,0.00018827,2]
[363114839,1748586638881,-974.48334217,0.00018827,2]
[363114842,1748586638895,-974.48334217,0.00018827,2]
[363114844,1748586638911,-974.48334217,0.00018827,2]
[363114847,1748586638926,-974.48334217,0.00018827,2]
[363114849,1748586638941,-974.48334217,0.00018827,2]
[363114852,1748586638957,-974.48334217,0.00018827,2]
[363114854,1748586638972,-1242.09902138,0.00018831,2]
[363114857,1748586638988,-503.95,0.00018864,2]
[363114860,1748586639003,-155.55081995,0.000189,2]
[363114862,1748586639019,-1078.925637,0.00018942,2]
[363114865,1748586639034,-961.0,0.00018987,2]
[363114867,1748586639049,-160.0,0.00018987,2]
[363114870,1748586639065,-423.39538199,0.00018987,2]
[363114873,1748586639081,-229.30959854,0.00018987,2]
[363114875,1748586639091,-842.5625,0.00018987,2]
[363114877,1748586639103,-160.0,0.00018987,2]
[363114879,1748586639114,-160.0,0.0001899,2]
[363114897,1748586639279,-160.0,0.00018992,2]
[363114901,1748586639306,-1242.09902138,0.00019107,2]
[363114903,1748586639315,-587.0,0.00019124,2]
[363114905,1748586639324,-587.0,0.00019125,2]
[363114907,1748586639334,-151.0,0.00019147,2]
[363114909,1748586639343,-505.16011412,0.00019173,2]
[363114911,1748586639352,-500.0,0.00019173,2]
[363114913,1748586639362,-500.0,0.00019173,2]
[363114915,1748586639372,-500.0,0.00019173,2]
[363114917,1748586639381,-500.0,0.00019173,2]
[363114919,1748586639390,-481.56516768,0.00019173,2]
[363114921,1748586639400,-516.50162892,0.00019173,2]
[363114923,1748586639409,-500.0,0.00019173,2]
[363114925,1748586639419,-151.0,0.00019177,2]
[363114927,1748586639428,-160.0,0.00019177,2]
[363114929,1748586639438,-151.669481,0.00019178,2]
[363114931,1748586639450,-407.8194894,0.00019178,2]
[363114933,1748586639459,-400.0,0.00019178,2]
[363114934,1748586639469,-450.0,0.00019178,2]
[363114937,1748586639479,-313.23355227,0.00019178,2]
[363114939,1748586639489,-448.07631904,0.00019178,2]
[363114941,1748586639498,-430.76695145,0.00019178,2]
[363114943,1748586639507,-430.0,0.00019178,2]
[363114945,1748586639517,-430.0,0.00019178,2]
[363114947,1748586639530,-430.0,0.00019178,2]
[363114949,1748586639539,-430.0,0.00019178,2]
[363114951,1748586639549,-430.86400016,0.00019178,2]
[363114953,1748586639558,-430.0,0.00019178,2]
[363114955,1748586639569,-430.0,0.00019178,2]
[363114957,1748586639579,-430.0,0.00019178,2]
[363114959,1748586639588,-430.0,0.00019178,2]
[363114961,1748586639597,-188.0,0.00019178,2]
[363114963,1748586639607,-430.0,0.00019178,2]
[363114965,1748586639617,-430.0,0.00019178,2]
[363114966,1748586639626,-430.0,0.00019178,2]
[363114969,1748586639635,-430.0,0.00019178,2]
[363114971,1748586639644,-430.0,0.00019178,2]
[363114973,1748586639654,-250.51561014,0.00019178,2]
[363114976,1748586639663,-421.22058019,0.00019178,2]
[363114977,1748586639672,-483.38,0.00019178,2]
[363114979,1748586639681,-376.14797898,0.00019178,2]
[363114981,1748586639693,-214.17310331,0.00019178,2]
[363114983,1748586639702,-430.0,0.00019178,2]
[363114985,1748586639711,-430.0,0.00019178,2]
[363114987,1748586639721,-401.60688984,0.00019178,2]
[363114989,1748586639730,-430.0,0.00019178,2]
[363114991,1748586639739,-186.31794752,0.00019178,2]
[363114993,1748586639748,-430.0,0.00019178,2]
[363114995,1748586639758,-430.0,0.00019178,2]
[363114997,1748586639767,-430.0,0.00019178,2]
[363114999,1748586639777,-430.0,0.00019178,2]
[363115001,1748586639785,-430.0,0.00019178,2]
[363115003,1748586639795,-430.0,0.00019178,2]
[363115005,1748586639805,-464.60656377,0.00019178,2]
[363115007,1748586639815,-430.0,0.00019178,2]
[363115009,1748586639824,-430.0,0.00019178,2]
[363115011,1748586639835,-430.0,0.00019178,2]
[363115013,1748586639844,-424.97876578,0.00019178,2]
[363115015,1748586639853,-430.0,0.00019178,2]
[363115017,1748586639863,-430.0,0.00019178,2]
[363115019,1748586639873,-430.0,0.00019178,2]
[363115022,1748586639882,-430.0,0.00019178,2]
[363115024,1748586639891,-430.0,0.00019178,2]
[363115026,1748586639901,-430.0,0.00019178,2]
[363115028,1748586639911,-430.0,0.00019178,2]
[363115030,1748586639920,-196.80093776,0.00019178,2]
[363115032,1748586639929,-1000.0,0.00019178,2]
[363115034,1748586639938,-430.0,0.00019178,2]
[363115036,1748586639949,-430.0,0.00019178,2]
[363115038,1748586639958,-430.0,0.00019178,2]
[363115041,1748586639968,-432.69444509,0.00019178,2]
[363115043,1748586639978,-588.0,0.00019178,2]
[363115045,1748586639987,-430.0,0.00019178,2]
[363115047,1748586639996,-430.0,0.00019178,2]
[363115049,1748586640006,-430.0,0.00019178,2]
[363115051,1748586640015,-430.0,0.00019178,2]
[363115052,1748586640024,-1000.0,0.00019178,2]
[363115055,1748586640033,-430.0,0.00019178,2]
[363115057,1748586640042,-430.0,0.00019178,2]
[363115059,1748586640052,-401.08002869,0.00019178,2]
[363115061,1748586640062,-430.0,0.00019178,2]
[363115063,1748586640071,-430.0,0.00019178,2]
[363115065,1748586640080,-430.0,0.00019178,2]
[363115067,1748586640097,-259.82565711,0.00019178,2]
[363115069,1748586640107,-430.0,0.00019178,2]
[363115071,1748586640116,-430.0,0.00019178,2]
[363115073,1748586640125,-430.0,0.00019178,2]
[363115075,1748586640135,-430.0,0.00019178,2]
[363115077,1748586640144,-430.0,0.00019178,2]
[363115079,1748586640153,-430.0,0.00019178,2]
[363115081,1748586640162,-430.0,0.00019178,2]
[363115082,1748586640172,-430.0,0.00019178,2]
[363115085,1748586640182,-430.0,0.00019178,2]
[363115087,1748586640192,-430.0,0.00019178,2]
[363115089,1748586640202,-650.88,0.00019178,2]
[363115091,1748586640211,-430.0,0.00019178,2]
[363115092,1748586640221,-430.0,0.00019178,2]
[363115094,1748586640230,-500.0,0.00019178,2]
[363115097,1748586640240,-430.0,0.00019178,2]
[363115099,1748586640249,-159.52950075,0.00019178,2]
[363115100,1748586640258,-577.47551176,0.00019178,2]
[363115103,1748586640268,-430.0,0.00019178,2]
[363115104,1748586640277,-430.0,0.00019178,2]
[363115105,1748586640287,-430.0,0.00019178,2]
[363115106,1748586640296,-424.18183585,0.00019178,2]
[363115107,1748586640305,-430.0,0.00019178,2]
[363115108,1748586640314,-430.0,0.00019178,2]
[363115109,1748586640324,-430.0,0.00019178,2]
[363115110,1748586640333,-430.0,0.00019178,2]
[363115111,1748586640342,-430.0,0.00019178,2]
[363115112,1748586640352,-430.0,0.00019178,2]
[363115113,1748586640361,-500.0,0.00019178,2]
[363115114,1748586640369,-500.0,0.00019178,2]
[363115115,1748586640379,-430.0,0.00019178,2]
[363115116,1748586640389,-430.0,0.00019178,2]
[363115117,1748586640398,-430.0,0.00019178,2]
[363115118,1748586640407,-430.0,0.00019178,2]
[363115119,1748586640417,-430.0,0.00019178,2]
[363115120,1748586640427,-430.0,0.00019178,2]
[363115121,1748586640436,-430.0,0.00019178,2]
[363115123,1748586640447,-370.71815793,0.00019178,2]
[363115125,1748586640457,-430.0,0.00019178,2]
[363115127,1748586640468,-430.0,0.00019178,2]
[363115129,1748586640477,-403.16315565,0.00019178,2]
[363115130,1748586640487,-432.24,0.00019178,2]
[363115131,1748586640496,-430.0,0.00019178,2]
[363115132,1748586640506,-422.67270731,0.00019178,2]
[363115134,1748586640515,-430.0,0.00019178,2]
[363115136,1748586640527,-430.0,0.00019178,2]
[363115138,1748586640538,-430.0,0.00019178,2]
[363115140,1748586640547,-470.0,0.00019178,2]
[363115142,1748586640557,-373.63469112,0.00019178,2]
[363115144,1748586640567,-430.0,0.00019178,2]
[363115146,1748586640576,-430.0,0.00019178,2]
[363115148,1748586640586,-430.0,0.00019178,2]
[363115150,1748586640594,-430.0,0.00019178,2]
[363115152,1748586640606,-430.0,0.00019178,2]
[363115154,1748586640616,-430.0,0.00019178,2]
[363115156,1748586640625,-430.0,0.00019178,2]
[363115158,1748586640635,-430.0,0.00019178,2]
[363115160,1748586640644,-430.0,0.00019178,2]
[363115162,1748586640653,-430.0,0.00019178,2]
[363115164,1748586640663,-430.0,0.00019178,2]
[363115166,1748586640672,-430.0,0.00019178,2]
[363115168,1748586640681,-423.4845344,0.00019178,2]
[363115170,1748586640692,-430.0,0.00019178,2]
[363115172,1748586640702,-326.99122783,0.00019178,2]
[363115174,1748586640711,-430.0,0.00019178,2]
[363115176,1748586640721,-401.09847878,0.00019178,2]
[363115178,1748586640730,-374.55946187,0.00019178,2]
[363115180,1748586640740,-401.06775472,0.00019178,2]
[363115182,1748586640750,-430.0,0.00019178,2]
[363115185,1748586640759,-446.10739453,0.00019178,2]
[363115187,1748586640768,-430.0,0.00019178,2]
[363115189,1748586640777,-430.0,0.00019178,2]
[363115191,1748586640787,-430.0,0.00019178,2]
[363115193,1748586640795,-430.0,0.00019178,2]
[363115195,1748586640804,-430.0,0.00019178,2]
[363115197,1748586640813,-430.0,0.00019178,2]
[363115199,1748586640822,-430.0,0.00019178,2]
[363115201,1748586640831,-430.0,0.00019178,2]
[363115203,1748586640839,-430.0,0.00019178,2]
[363115205,1748586640848,-400.92535718,0.00019178,2]
[363115207,1748586640857,-430.0,0.00019178,2]
[363115209,1748586640867,-370.0,0.00019178,2]
[363115211,1748586640875,-381.92977104,0.00019178,2]
[363115213,1748586640884,-430.0,0.00019178,2]
[363115215,1748586640892,-430.0,0.00019178,2]
[363115216,1748586640901,-430.0,0.00019178,2]
[363115218,1748586640910,-430.0,0.00019178,2]
[363115221,1748586640920,-430.0,0.00019178,2]
[363115223,1748586640929,-430.0,0.00019178,2]
[363115225,1748586640939,-430.0,0.00019178,2]
[363115226,1748586640950,-430.0,0.00019178,2]
[363115229,1748586640968,-430.0,0.00019178,2]
[363115231,1748586640978,-430.0,0.00019178,2]
[363115233,1748586640987,-430.0,0.00019178,2]
[363115235,1748586640997,-430.0,0.00019178,2]
[363115237,1748586641007,-371.29344144,0.00019178,2]
[363115239,1748586641016,-430.0,0.00019178,2]
[363115241,1748586641025,-577.60944851,0.00019178,2]
[363115243,1748586641035,-430.0,0.00019178,2]
[363115245,1748586641044,-430.0,0.00019178,2]
[363115247,1748586641053,-430.0,0.00019178,2]
[363115249,1748586641063,-216.43799491,0.00019178,2]
[363115251,1748586641072,-430.0,0.00019178,2]
[363115253,1748586641081,-430.0,0.00019178,2]
[363115255,1748586641091,-430.0,0.00019178,2]
[363115257,1748586641100,-430.0,0.00019178,2]
[363115259,1748586641109,-371.25440275,0.00019178,2]
[363115261,1748586641119,-430.0,0.00019178,2]
[363115263,1748586641128,-430.0,0.00019178,2]
[363115265,1748586641138,-580.33,0.00019178,2]
[363115267,1748586641147,-430.0,0.00019178,2]
[363115279,1748586641254,-430.0,0.00019178,2]
[363115281,1748586641264,-430.0,0.00019178,2]
[363115283,1748586641273,-431.17496944,0.00019178,2]
[363115285,1748586641283,-430.0,0.00019178,2]
[363115287,1748586641291,-430.0,0.00019178,2]
[363115289,1748586641300,-430.0,0.00019178,2]
[363115291,1748586641310,-430.0,0.00019178,2]
[363115293,1748586641319,-430.0,0.00019178,2]
[363115295,1748586641328,-430.0,0.00019178,2]
[363115297,1748586641337,-923.53,0.00019178,2]
[363115299,1748586641347,-430.0,0.00019178,2]
[363115301,1748586641356,-430.0,0.00019178,2]
[363115303,1748586641365,-430.0,0.00019178,2]
[363115305,1748586641375,-430.0,0.00019178,2]
[363115307,1748586641384,-430.0,0.00019178,2]
[363115309,1748586641393,-430.0,0.00019178,2]
[363115311,1748586641402,-430.0,0.00019178,2]
[363115313,1748586641411,-430.0,0.00019178,2]
[363115315,1748586641420,-770.17,0.00019178,2]
[363115317,1748586641430,-430.0,0.00019178,2]
[363115319,1748586641439,-430.0,0.00019178,2]
[363115321,1748586641450,-430.0,0.00019178,2]
[363115323,1748586641459,-430.0,0.00019178,2]
[363115325,1748586641468,-450.0,0.00019178,2]
[363115327,1748586641478,-430.0,0.00019178,2]
[363115329,1748586641487,-430.0,0.00019178,2]
[363115331,1748586641496,-430.0,0.00019178,2]
[363115333,1748586641505,-816.58,0.00019178,2]
[363115335,1748586641515,-430.0,0.00019178,2]
[363115337,1748586641526,-430.0,0.00019178,2]
[363115339,1748586641536,-430.0,0.00019178,2]
[363115341,1748586641545,-561.071773,0.00019178,2]
[363115343,1748586641555,-430.0,0.00019178,2]
[363115345,1748586641564,-430.0,0.00019178,2]
[363115347,1748586641574,-430.0,0.00019178,2]
[363115349,1748586641583,-430.0,0.00019178,2]
[363115351,1748586641593,-430.0,0.00019178,2]
[363115353,1748586641604,-430.0,0.00019178,2]
[363115355,1748586641613,-430.0,0.00019178,2]
[363115357,1748586641623,-512.64,0.00019178,2]
[363115359,1748586641632,-430.0,0.00019178,2]
[363115361,1748586641640,-430.0,0.00019178,2]
[363115363,1748586641649,-430.0,0.00019178,2]
[363115365,1748586641658,-507.31,0.00019178,2]
[363115367,1748586641667,-430.0,0.00019178,2]
[363115369,1748586641676,-430.0,0.00019178,2]
[363115371,1748586641685,-430.0,0.00019178,2]
[363115373,1748586641695,-430.0,0.00019178,2]
[363115375,1748586641704,-430.0,0.00019178,2]
[363115377,1748586641714,-430.0,0.00019178,2]
[363115379,1748586641723,-430.0,0.00019178,2]
[363115381,1748586641733,-430.0,0.00019178,2]
[363115383,1748586641742,-403.54670781,0.00019178,2]
[363115385,1748586641751,-430.0,0.00019178,2]
[363115387,1748586641760,-430.0,0.00019178,2]
[363115389,1748586641770,-430.0,0.00019178,2]
[363115391,1748586641781,-430.0,0.00019178,2]
[363115393,1748586641790,-564.34718289,0.00019178,2]
[363115395,1748586641799,-430.0,0.00019178,2]
[363115397,1748586641808,-430.0,0.00019178,2]
[363115399,1748586641818,-409.65260688,0.00019178,2]
[363115401,1748586641828,-430.0,0.00019178,2]
[363115403,1748586641838,-430.0,0.00019178,2]
[363115405,1748586641848,-430.0,0.00019178,2]
[363115407,1748586641857,-430.0,0.00019178,2]
[363115409,1748586641866,-430.0,0.00019178,2]
[363115411,1748586641875,-430.0,0.00019178,2]
[363115413,1748586641885,-433.11142765,0.00019178,2]
[363115415,1748586641894,-431.71112241,0.00019178,2]
[363115417,1748586641903,-430.0,0.00019178,2]
[363115419,1748586641913,-430.0,0.00019178,2]
[363115421,1748586641923,-430.0,0.00019178,2]
[363115423,1748586641932,-430.0,0.00019178,2]
[363115425,1748586641943,-430.0,0.00019178,2]
[363115427,1748586641952,-602.9,0.00019178,2]
[363115429,1748586641962,-430.0,0.00019178,2]
[363115431,1748586641971,-330.59362859,0.00019178,2]
[363115433,1748586641981,-430.0,0.00019178,2]
[363115435,1748586641989,-430.0,0.00019178,2]
[363115437,1748586642000,-270.66725321,0.00019178,2]
[363115439,1748586642009,-457.41230253,0.00019178,2]
[363115441,1748586642018,-430.0,0.00019178,2]
[363115443,1748586642027,-430.0,0.00019178,2]
[363115445,1748586642037,-430.0,0.00019178,2]
[363115447,1748586642046,-458.59036024,0.00019178,2]
[363115449,1748586642055,-430.0,0.00019178,2]
[363115451,1748586642065,-430.0,0.00019178,2]
[363115453,1748586642074,-430.0,0.00019178,2]
[363115455,1748586642084,-430.0,0.00019178,2]
[363115457,1748586642094,-430.0,0.00019178,2]
[363115459,1748586642103,-320.98718604,0.00019178,2]
[363115461,1748586642112,-430.0,0.00019178,2]
[363115463,1748586642122,-430.0,0.00019178,2]
[363115465,1748586642132,-430.0,0.00019178,2]
[363115467,1748586642142,-430.0,0.00019178,2]
[363115469,1748586642151,-430.0,0.00019178,2]
[363115471,1748586642160,-430.0,0.00019178,2]
[363115473,1748586642169,-430.0,0.00019178,2]
[363115475,1748586642180,-430.0,0.00019178,2]
[363115477,1748586642189,-430.0,0.00019178,2]
[363115479,1748586642199,-430.0,0.00019178,2]
[363115481,1748586642209,-454.81179761,0.00019178,2]
[363115483,1748586642219,-430.0,0.00019178,2]
[363115485,1748586642228,-282.07537445,0.00019178,2]
[363115487,1748586642237,-430.0,0.00019178,2]
[363115489,1748586642247,-516.57,0.00019178,2]
[363115491,1748586642256,-453.54405655,0.00019178,2]
[363115493,1748586642266,-430.0,0.00019178,2]
[363115495,1748586642277,-430.0,0.00019178,2]
[363115497,1748586642287,-430.0,0.00019178,2]
[363115499,1748586642296,-350.91900477,0.00019178,2]
[363115501,1748586642305,-430.0,0.00019178,2]
[363115504,1748586642315,-430.0,0.00019178,2]
[363115505,1748586642324,-559.15227377,0.00019178,2]
[363115507,1748586642333,-430.0,0.00019178,2]
[363115509,1748586642343,-430.0,0.00019178,2]
[363115511,1748586642352,-430.0,0.00019178,2]
[363115513,1748586642361,-430.0,0.00019178,2]
[363115515,1748586642370,-430.0,0.00019178,2]
[363115517,1748586642379,-1693.93,0.00019178,2]
[363115519,1748586642388,-430.0,0.00019178,2]
[363115521,1748586642398,-337.32748788,0.00019178,2]
[363115523,1748586642408,-430.0,0.00019178,2]
[363115525,1748586642418,-430.0,0.00019178,2]
[363115527,1748586642428,-430.0,0.00019178,2]
[363115529,1748586642437,-430.0,0.00019178,2]
[363115531,1748586642448,-430.0,0.00019178,2]
[363115533,1748586642457,-430.0,0.00019178,2]
[363115535,1748586642467,-430.0,0.00019178,2]
[363115537,1748586642477,-430.0,0.00019178,2]
[363115539,1748586642487,-430.0,0.00019178,2]
[363115541,1748586642497,-430.0,0.00019178,2]
[363115543,1748586642507,-430.0,0.00019178,2]
[363115545,1748586642517,-431.8346878,0.00019178,2]
[363115547,1748586642529,-430.0,0.00019178,2]
[363115549,1748586642539,-430.0,0.00019178,2]
[363115551,1748586642549,-430.0,0.00019178,2]
[363115553,1748586642559,-430.0,0.00019178,2]
[363115555,1748586642571,-430.0,0.00019178,2]
[363115557,1748586642581,-430.0,0.00019178,2]
[363115559,1748586642590,-400.0,0.00019178,2]
[363115561,1748586642600,-430.0,0.00019178,2]
[363115563,1748586642610,-430.0,0.00019178,2]
[363115566,1748586642620,-430.0,0.00019178,2]
[363115568,1748586642629,-191.60157159,0.00019178,2]
[363115572,1748586642660,-238.39842841,0.00019178,2]
[363115574,1748586642670,-430.0,0.00019178,2]
[363115576,1748586642679,-430.0,0.00019178,2]
[363115578,1748586642690,-430.0,0.00019178,2]
[363115580,1748586642700,-444.58815403,0.00019178,2]
[363115582,1748586642710,-430.0,0.00019178,2]
[363115584,1748586642719,-430.0,0.00019178,2]
[363115586,1748586642729,-79.61297672,0.00019178,2]
[363115588,1748586642741,-350.38702328,0.00019178,2]
[363115590,1748586642751,-400.61451964,0.00019178,2]
[363115593,1748586642762,-430.0,0.00019178,2]
[363115595,1748586642772,-430.0,0.00019178,2]
[363115597,1748586642781,-262.09853649,0.00019178,2]
[363115600,1748586642802,-167.90146351,0.00019178,2]
[363115602,1748586642811,-509.21437107,0.00019178,2]
[363115604,1748586642820,-181.35099094,0.00019178,2]
[363115606,1748586642832,-248.64900906,0.00019178,2]
[363115608,1748586642841,-430.0,0.00019178,2]
[363115610,1748586642852,-430.0,0.00019178,2]
[363115612,1748586642862,-430.0,0.00019178,2]
[363115614,1748586642871,-430.0,0.00019178,2]
[363115616,1748586642881,-383.82908698,0.00019178,2]
[363115618,1748586642890,-430.0,0.00019178,2]
[363115620,1748586642900,-430.0,0.00019178,2]
[363115622,1748586642909,-430.0,0.00019178,2]
[363115624,1748586642919,-327.15267801,0.00019178,2]
[363115626,1748586642929,-407.95658945,0.00019178,2]
[363115662,1748586643262,-42.04341055,0.00019178,2]
[363115664,1748586643272,-430.51694996,0.00019178,2]
[363115666,1748586643281,-430.0,0.00019178,2]
[363115668,1748586643291,-430.0,0.00019178,2]
[363115670,1748586643300,-430.0,0.00019178,2]
[363115672,1748586643310,-430.0,0.00019178,2]
[363115673,1748586643319,-226.76278199,0.00019178,2]
[363115676,1748586643329,-430.0,0.00019178,2]
[363115678,1748586643339,-430.0,0.00019178,2]
[363115679,1748586643348,-430.0,0.00019178,2]
[363115682,1748586643358,-430.0,0.00019178,2]
[363115684,1748586643367,-430.0,0.00019178,2]
[363115686,1748586643376,-430.0,0.00019178,2]
[363115688,1748586643386,-312.9968575,0.00019178,2]
[363116013,1748586646656,-381.18321464,0.00018265,2]
[363116020,1748586646713,-24518.81678536,0.00018265,2]
[363116022,1748586646722,-212.7380601,0.00018983,2]
[363116024,1748586646732,-117.0031425,0.00019178,2]
[363116026,1748586646741,-430.0,0.00019178,2]
[363116028,1748586646750,-400.63332418,0.00019178,2]
[363116030,1748586646760,-431.70411064,0.00019178,2]
[363116032,1748586646769,-430.0,0.00019178,2]
[363116034,1748586646779,-430.0,0.00019178,2]
[363116036,1748586646789,-430.0,0.00019178,2]
[363116038,1748586646798,-484.75,0.00019178,2]
[363116040,1748586646807,-390.0,0.00019178,2]
[363116042,1748586646816,-403.25091693,0.00019178,2]
[363116044,1748586646826,-430.0,0.00019178,2]
[363116046,1748586646836,-430.0,0.00019178,2]
[363116048,1748586646845,-581.65,0.00019178,2]
[363116050,1748586646855,-430.0,0.00019178,2]
[363116051,1748586646864,-430.0,0.00019178,2]
[363116054,1748586646875,-430.0,0.00019178,2]
[363116055,1748586646884,-430.0,0.00019178,2]
[363116058,1748586646893,-430.0,0.00019178,2]
[363116060,1748586646903,-500.0,0.00019178,2]
[363116061,1748586646913,-430.0,0.00019178,2]
[363116064,1748586646922,-430.0,0.00019178,2]
[363116066,1748586646931,-415.04103203,0.00019178,2]
[363116068,1748586646941,-430.0,0.00019178,2]
[363116071,1748586646950,-300.0,0.00019178,2]
[363116072,1748586646960,-500.0,0.00019178,2]
[363116074,1748586646969,-233.98697092,0.00019178,2]
[363116076,1748586646978,-430.0,0.00019178,2]
[363116078,1748586646988,-430.0,0.00019178,2]
[363116080,1748586646998,-430.0,0.00019178,2]
[363116082,1748586647007,-588.92,0.00019178,2]
[363116084,1748586647017,-430.0,0.00019178,2]
[363116086,1748586647026,-430.0,0.00019178,2]
[363116088,1748586647036,-405.8551719,0.00019178,2]
[363116090,1748586647045,-500.0,0.00019178,2]
[363116091,1748586647054,-430.0,0.00019178,2]
[363116092,1748586647063,-430.0,0.00019178,2]